fUST/lending_fUST_20250718
["ID","MTS","AMOUNT","RATE_DAILY","PERIOD"]
[372949458,1752817852748,-460.0,0.00020273,2]
[372949460,1752817852757,-601.93,0.00020273,2]
[372949462,1752817852767,-1340.21,0.00020273,2]
[372949464,1752817852776,-460.0,0.00020273,2]
[372949466,1752817852786,-3455.69,0.00020273,2]
[372949468,1752817852795,-765.94962381,0.0002031,2]
[372949470,1752817852805,-482.18,0.00020547,2]
[372949472,1752817852814,-483.9371461,0.00020547,2]
[372949474,1752817852824,-514.77,0.00020547,2]
[372949476,1752817852833,-656.79,0.00020547,2]
[372949478,1752817852843,-460.0,0.00020547,2]
[372949480,1752817852856,-462.11,0.00020547,2]
[372949482,1752817852867,-460.0,0.00020547,2]
[372949484,1752817852877,-460.0,0.00020547,2]
[372949487,1752817852888,-460.0,0.00020547,2]
[372949489,1752817852898,-460.0,0.00020547,2]
[372949491,1752817852908,-570.12,0.00020547,2]
[372949492,1752817852920,-460.0,0.00020547,2]
[372949495,1752817852931,-460.0,0.00020547,2]
[372949497,1752817852941,-460.0,0.00020547,2]
[372949499,1752817852950,-1950.61,0.00020547,2]
[372949501,1752817852961,-460.26,0.00020547,2]
[372949503,1752817852971,-460.0,0.00020547,2]
[372949504,1752817852981,-530.61,0.00020547,2]
[372949507,1752817852991,-460.0,0.00020547,2]
[372949509,1752817853001,-824.64,0.00020547,2]
[372949511,1752817853010,-460.0,0.00020547,2]
[372949513,1752817853020,-460.0,0.00020547,2]
[372949515,1752817853030,-1410.17,0.00020547,2]
[372949517,1752817853039,-1156.33,0.00020547,2]
[372949519,1752817853048,-2754.43,0.00020547,2]
[372949521,1752817853057,-1786.69,0.00020547,2]
[372949523,1752817853067,-460.0,0.00020547,2]
[372949525,1752817853076,-460.0,0.00020547,2]
[372949527,1752817853086,-688.88,0.00020547,2]
[372949529,1752817853096,-460.0,0.00020547,2]
[372949531,1752817853105,-479.92,0.00020547,2]
[372949533,1752817853115,-3471.04,0.00020547,2]
[372949535,1752817853124,-501.1,0.00020547,2]
[372949537,1752817853133,-473.09,0.00020547,2]
[372949539,1752817853142,-773.33,0.00020547,2]
[372949541,1752817853152,-715.09,0.00020547,2]
[372949543,1752817853162,-460.0,0.00020547,2]
[372949545,1752817853173,-2093.69,0.00020547,2]
[372949547,1752817853183,-745.39,0.00020547,2]
[372949549,1752817853192,-460.0,0.00020547,2]
[372949551,1752817853202,-998.27,0.00020547,2]
[372949553,1752817853211,-597.53,0.00020547,2]
[372949555,1752817853220,-1220.96,0.00020547,2]
[372949557,1752817853230,-460.0,0.00020547,2]
[372949559,1752817853239,-341.74,0.00020547,2]
[372949562,1752817853249,-460.0,0.00020547,2]
[372949563,1752817853258,-460.0,0.00020547,2]
[372949566,1752817853267,-460.0,0.00020547,2]
[372949567,1752817853276,-460.0,0.00020547,2]
[372949569,1752817853286,-460.0,0.00020547,2]
[372949571,1752817853295,-688.63,0.00020547,2]
[372949574,1752817853305,-460.0,0.00020547,2]
[372949576,1752817853315,-1356.91,0.00020547,2]
[372949578,1752817853324,-1968.92,0.00020547,2]
[372949580,1752817853334,-768.29,0.00020547,2]
[372949582,1752817853343,-460.0,0.00020547,2]
[372949584,1752817853353,-460.0,0.00020547,2]
[372949586,1752817853362,-601.93,0.00020547,2]
[372949588,1752817853372,-1340.21,0.00020547,2]
[372949589,1752817853381,-460.0,0.00020547,2]
[372949592,1752817853390,-3455.69,0.00020547,2]
[372949594,1752817853399,-201.0,0.00020548,3]
[372949595,1752817853408,-6585.58830415,0.00020701,2]
[372949598,1752817853419,-482.18,0.00020821,2]
[372949599,1752817853428,-514.77,0.00020821,2]
[372949601,1752817853437,-656.79,0.00020821,2]
[372949604,1752817853447,-460.0,0.00020821,2]
[372949606,1752817853457,-462.11,0.00020821,2]
[372949607,1752817853467,-460.0,0.00020821,2]
[372949610,1752817853476,-460.0,0.00020821,2]
[372949611,1752817853486,-460.0,0.00020821,2]
[372949614,1752817853496,-460.0,0.00020821,2]
[372949615,1752817853506,-570.12,0.00020821,2]
[372949618,1752817853515,-460.0,0.00020821,2]
[372949620,1752817853524,-179.02501965,0.00020821,2]
[372949621,1752817853533,-460.0,0.00020821,2]
[372949623,1752817853543,-1950.61,0.00020821,2]
[372949626,1752817853552,-460.26,0.00020821,2]
[372949628,1752817853562,-460.0,0.00020821,2]
[372949630,1752817853571,-530.61,0.00020821,2]
[372949632,1752817853580,-460.0,0.00020821,2]
[372949634,1752817853590,-824.64,0.00020821,2]
[372949636,1752817853599,-229.55,0.00020821,2]
[372949638,1752817853608,-263.7,0.00020821,2]
[372949640,1752817853618,-1410.17,0.00020821,2]
[372949642,1752817853627,-1156.33,0.00020821,2]
[372949644,1752817853636,-2754.43,0.00020821,2]
[372949646,1752817853646,-1786.69,0.00020821,2]
[372949648,1752817853655,-460.0,0.00020821,2]
[372949650,1752817853664,-460.0,0.00020821,2]
[372949652,1752817853675,-688.88,0.00020821,2]
[372949654,1752817853684,-460.0,0.00020821,2]
[372949656,1752817853692,-479.92,0.00020821,2]
[372949658,1752817853702,-3471.04,0.00020821,2]
[372949660,1752817853711,-501.1,0.00020821,2]
[372949662,1752817853721,-473.09,0.00020821,2]
[372949664,1752817853730,-773.33,0.00020821,2]
[372949666,1752817853739,-715.09,0.00020821,2]
[372949668,1752817853748,-460.0,0.00020821,2]
[372949670,1752817853757,-2093.69,0.00020821,2]
[372949672,1752817853766,-745.39,0.00020821,2]
[372949674,1752817853775,-460.0,0.00020821,2]
[372949676,1752817853783,-998.27,0.00020821,2]
[372949677,1752817853792,-597.53,0.00020821,2]
[372949680,1752817853802,-1220.96,0.00020821,2]
[372949681,1752817853811,-460.0,0.00020821,2]
[372949683,1752817853820,-460.0,0.00020821,2]
[372949685,1752817853829,-460.0,0.00020821,2]
[372949688,1752817853839,-460.0,0.00020821,2]
[372949690,1752817853851,-460.0,0.00020821,2]
[372949692,1752817853861,-460.0,0.00020821,2]
[372949694,1752817853871,-688.63,0.00020821,2]
[372949696,1752817853880,-460.0,0.00020821,2]
[372949698,1752817853889,-1356.91,0.00020821,2]
[372949699,1752817853898,-1968.92,0.00020821,2]
[372949702,1752817853908,-768.29,0.00020821,2]
[372949703,1752817853918,-460.0,0.00020821,2]
[372949706,1752817853929,-460.0,0.00020821,2]
[372949708,1752817853939,-601.93,0.00020821,2]
[372949710,1752817853949,-1340.21,0.00020821,2]
[372949712,1752817853958,-460.0,0.00020821,2]
[372949714,1752817853967,-3455.69,0.00020821,2]
[372949716,1752817853976,-151.0,0.000209,4]
[372949718,1752817853985,-485.521,0.00020935,2]
[372949720,1752817853994,-652.0,0.00021081,2]
[372949722,1752817854004,-482.18,0.00021095,2]
[372949724,1752817854014,-514.77,0.00021095,2]
[372949726,1752817854024,-656.79,0.00021095,2]
[372949728,1752817854034,-460.0,0.00021095,2]
[372949730,1752817854043,-462.11,0.00021095,2]
[372949732,1752817854052,-460.0,0.00021095,2]
[372949734,1752817854062,-460.0,0.00021095,2]
[372949736,1752817854072,-460.0,0.00021095,2]
[372949738,1752817854081,-460.0,0.00021095,2]
[372949740,1752817854090,-570.12,0.00021095,2]
[372949742,1752817854099,-223.36,0.00021095,2]
[372949744,1752817854108,-460.0,0.00021095,2]
[372949746,1752817854117,-1950.61,0.00021095,2]
[372949748,1752817854127,-460.26,0.00021095,2]
[372949750,1752817854136,-460.0,0.00021095,2]
[372949752,1752817854145,-530.61,0.00021095,2]
[372949754,1752817854154,-460.0,0.00021095,2]
[372949756,1752817854164,-824.64,0.00021095,2]
[372949758,1752817854175,-1410.17,0.00021095,2]
[372949760,1752817854184,-1156.33,0.00021095,2]
[372949762,1752817854194,-2754.43,0.00021095,2]
[372949764,1752817854203,-1786.69,0.00021095,2]
[372949766,1752817854212,-460.0,0.00021095,2]
[372949768,1752817854222,-565.9,0.00021095,2]
[372949770,1752817854231,-688.88,0.00021095,2]
[372949772,1752817854243,-323.21040052,0.00021095,2]
[372949774,1752817854252,-479.92,0.00021095,2]
[372949776,1752817854262,-3471.04,0.00021095,2]
[372949778,1752817854272,-501.1,0.00021095,2]
[372949780,1752817854282,-473.09,0.00021095,2]
[372949782,1752817854291,-773.33,0.00021095,2]
[372949784,1752817854300,-715.09,0.00021095,2]
[372949786,1752817854310,-460.0,0.00021095,2]
[372949788,1752817854320,-2093.69,0.00021095,2]
[372949790,1752817854329,-745.39,0.00021095,2]
[372949792,1752817854339,-460.0,0.00021095,2]
[372949794,1752817854348,-998.27,0.00021095,2]
[372949796,1752817854358,-597.53,0.00021095,2]
[372949798,1752817854367,-1220.96,0.00021095,2]
[372949800,1752817854376,-460.0,0.00021095,2]
[372949802,1752817854386,-460.0,0.00021095,2]
[372949804,1752817854395,-364.29923589,0.00021095,2]
[372949806,1752817854405,-194.25,0.00021095,2]
[372949808,1752817854414,-460.0,0.00021095,2]
[372949810,1752817854425,-460.0,0.00021095,2]
[372949812,1752817854434,-688.63,0.00021095,2]
[372949813,1752817854444,-460.0,0.00021095,2]
[372949814,1752817854454,-1356.91,0.00021095,2]
[372949815,1752817854464,-1968.92,0.00021095,2]
[372949816,1752817854474,-768.29,0.00021095,2]
[372949817,1752817854484,-460.0,0.00021095,2]
[372949818,1752817854494,-460.0,0.00021095,2]
[372949819,1752817854503,-601.93,0.00021095,2]
[372949820,1752817854513,-1340.21,0.00021095,2]
[372949821,1752817854523,-460.0,0.00021095,2]
[372949822,1752817854532,-3455.69,0.00021095,2]
[372949823,1752817854542,-150.0,0.0002112,2]
[372949824,1752817854551,-5000.0,0.00021137,2]
[372949825,1752817854560,-482.18,0.00021369,2]
[372949827,1752817854570,-514.77,0.00021369,2]
[372949829,1752817854579,-656.79,0.00021369,2]
[372949831,1752817854588,-356.88,0.00021369,2]
[372949833,1752817854597,-462.11,0.00021369,2]
[372949835,1752817854606,-460.0,0.00021369,2]
[372949837,1752817854616,-460.0,0.00021369,2]
[372949839,1752817854625,-361.48,0.00021369,2]
[372949841,1752817854635,-505.8,0.00021369,2]
[372949843,1752817854644,-570.12,0.00021369,2]
[372949845,1752817854654,-460.0,0.00021369,2]
[372949847,1752817854663,-1950.61,0.00021369,2]
[372949849,1752817854673,-460.26,0.00021369,2]
[372949851,1752817854683,-460.0,0.00021369,2]
[372949853,1752817854692,-530.61,0.00021369,2]
[372949855,1752817854701,-459.98,0.00021369,2]
[372949857,1752817854710,-824.64,0.00021369,2]
[372949859,1752817854720,-1410.17,0.00021369,2]
[372949861,1752817854729,-1156.33,0.00021369,2]
[372949863,1752817854738,-2754.43,0.00021369,2]
[372949865,1752817854747,-1786.69,0.00021369,2]
[372949867,1752817854757,-460.0,0.00021369,2]
[372949869,1752817854766,-688.88,0.00021369,2]
[372949871,1752817854776,-479.92,0.00021369,2]
[372949873,1752817854786,-3471.04,0.00021369,2]
[372949875,1752817854795,-501.1,0.00021369,2]
[372949877,1752817854805,-473.09,0.00021369,2]
[372949879,1752817854814,-773.33,0.00021369,2]
[372949881,1752817854823,-715.09,0.00021369,2]
[372949883,1752817854832,-460.0,0.00021369,2]
[372949885,1752817854842,-2093.69,0.00021369,2]
[372949887,1752817854855,-745.39,0.00021369,2]
[372949889,1752817854864,-460.0,0.00021369,2]
[372949891,1752817854874,-998.27,0.00021369,2]
[372949893,1752817854883,-597.53,0.00021369,2]
[372949895,1752817854892,-1220.96,0.00021369,2]
[372949897,1752817854902,-460.0,0.00021369,2]
[372949899,1752817854911,-460.0,0.00021369,2]
[372949901,1752817854921,-460.0,0.00021369,2]
[372949903,1752817854932,-434.58225244,0.00021369,2]
[372949905,1752817854943,-688.63,0.00021369,2]
[372949907,1752817854953,-460.0,0.00021369,2]
[372949909,1752817854962,-1356.91,0.00021369,2]
[372949911,1752817854972,-1968.92,0.00021369,2]
[372949913,1752817854984,-768.29,0.00021369,2]
[372949915,1752817854994,-460.0,0.00021369,2]
[372949917,1752817855003,-460.0,0.00021369,2]
[372949931,1752817855122,-601.93,0.00021369,2]
[372949933,1752817855132,-1340.21,0.00021369,2]
[372949935,1752817855141,-460.0,0.00021369,2]
[372949937,1752817855151,-3455.69,0.00021369,2]
[372949939,1752817855160,-2199.99646509,0.00021446,4]
[372949941,1752817855171,-765.94962381,0.00021543,2]
[372949943,1752817855180,-151.0,0.00021633,2]
[372949945,1752817855189,-151.0,0.00021633,2]
[372949947,1752817855199,-151.0,0.00021633,2]
[372949949,1752817855208,-151.0,0.00021633,2]
[372949951,1752817855218,-151.0,0.00021633,2]
[372949953,1752817855228,-151.0,0.00021633,2]
[372949955,1752817855242,-151.0,0.00021633,2]
[372949957,1752817855251,-151.0,0.00021633,2]
[372949959,1752817855261,-3801.642,0.00021633,2]
[372949961,1752817855270,-151.0,0.00021633,2]
[372949963,1752817855280,-151.0,0.00021633,2]
[372949965,1752817855289,-151.0,0.00021633,2]
[372949967,1752817855298,-151.0,0.00021633,2]
[372949969,1752817855308,-151.0,0.00021633,2]
[372949971,1752817855319,-151.0,0.00021633,2]
[372949973,1752817855329,-207.4,0.00021633,2]
[372949975,1752817855338,-151.0,0.00021633,2]
[372949977,1752817855349,-151.0,0.00021633,2]
[372949979,1752817855360,-151.0,0.00021633,2]
[372949981,1752817855369,-151.0,0.00021633,2]
[372949983,1752817855379,-151.0,0.00021633,2]
[372949985,1752817855388,-151.0,0.00021633,2]
[372949987,1752817855397,-151.0,0.00021633,2]
[372949989,1752817855406,-151.0,0.00021633,2]
[372949991,1752817855415,-151.0,0.00021633,2]
[372949993,1752817855425,-151.0,0.00021633,2]
[372949995,1752817855435,-151.0,0.00021633,2]
[372949997,1752817855444,-151.0,0.00021633,2]
[372949999,1752817855454,-151.0,0.00021633,2]
[372950001,1752817855463,-151.0,0.00021633,2]
[372950003,1752817855473,-151.0,0.00021633,2]
[372950005,1752817855482,-151.0,0.00021633,2]
[372950007,1752817855492,-151.0,0.00021633,2]
[372950009,1752817855501,-151.0,0.00021633,2]
[372950011,1752817855510,-151.0,0.00021633,2]
[372950013,1752817855519,-151.0,0.00021633,2]
[372950015,1752817855529,-159.14388846,0.00021633,2]
[372950017,1752817855538,-482.18,0.00021643,2]
[372950019,1752817855547,-514.77,0.00021643,2]
[372950021,1752817855557,-656.79,0.00021643,2]
[372950023,1752817855566,-462.11,0.00021643,2]
[372950025,1752817855575,-226.16719161,0.00021643,2]
[372950027,1752817855584,-151.5,0.00021643,2]
[372950029,1752817855593,-570.12,0.00021643,2]
[372950030,1752817855602,-460.0,0.00021643,2]
[372950032,1752817855612,-1950.61,0.00021643,2]
[372950034,1752817855621,-460.26,0.00021643,2]
[372950037,1752817855631,-460.0,0.00021643,2]
[372950039,1752817855641,-530.61,0.00021643,2]
[372950040,1752817855651,-824.64,0.00021643,2]
[372950043,1752817855660,-1410.17,0.00021643,2]
[372950045,1752817855671,-1156.33,0.00021643,2]
[372950047,1752817855681,-2754.43,0.00021643,2]
[372950049,1752817855691,-1786.69,0.00021643,2]
[372950051,1752817855700,-460.0,0.00021643,2]
[372950052,1752817855709,-688.88,0.00021643,2]
[372950054,1752817855718,-479.92,0.00021643,2]
[372950056,1752817855728,-3471.04,0.00021643,2]
[372950058,1752817855737,-501.1,0.00021643,2]
[372950060,1752817855746,-473.09,0.00021643,2]
[372950062,1752817855756,-773.33,0.00021643,2]
[372950064,1752817855766,-715.09,0.00021643,2]
[372950066,1752817855775,-460.0,0.00021643,2]
[372950068,1752817855785,-2093.69,0.00021643,2]
[372950070,1752817855794,-745.39,0.00021643,2]
[372950072,1752817855803,-460.0,0.00021643,2]
[372950074,1752817855813,-998.27,0.00021643,2]
[372950077,1752817855823,-597.53,0.00021643,2]
[372950079,1752817855832,-1220.96,0.00021643,2]
[372950080,1752817855842,-460.0,0.00021643,2]
[372950083,1752817855855,-460.0,0.00021643,2]
[372950085,1752817855864,-152.49,0.00021643,2]
[372950087,1752817855873,-688.63,0.00021643,2]
[372950089,1752817855883,-460.0,0.00021643,2]
[372950091,1752817855892,-1356.91,0.00021643,2]
[372950092,1752817855902,-1968.92,0.00021643,2]
[372950095,1752817855913,-768.29,0.00021643,2]
[372950097,1752817855926,-291.7587698,0.00021643,2]
[372950099,1752817855937,-460.0,0.00021643,2]
[372950101,1752817855947,-601.93,0.00021643,2]
[372950103,1752817855957,-1340.21,0.00021643,2]
[372950105,1752817855967,-460.0,0.00021643,2]
[372950107,1752817855976,-3455.69,0.00021643,2]
[372950109,1752817855986,-500.0,0.00021868,2]
[372950111,1752817855995,-482.18,0.00021917,2]
[372950113,1752817856005,-514.77,0.00021917,2]
[372950115,1752817856017,-656.79,0.00021917,2]
[372950117,1752817856027,-462.11,0.00021917,2]
[372950119,1752817856037,-570.12,0.00021917,2]
[372950121,1752817856046,-460.0,0.00021917,2]
[372950123,1752817856055,-1950.61,0.00021917,2]
[372950125,1752817856065,-460.26,0.00021917,2]
[372950127,1752817856075,-460.0,0.00021917,2]
[372950129,1752817856084,-530.61,0.00021917,2]
[372950131,1752817856094,-824.64,0.00021917,2]
[372950133,1752817856103,-1410.17,0.00021917,2]
[372950135,1752817856113,-1156.33,0.00021917,2]
[372950137,1752817856122,-2754.43,0.00021917,2]
[372950139,1752817856132,-1786.69,0.00021917,2]
[372950141,1752817856141,-460.0,0.00021917,2]
[372950143,1752817856151,-688.88,0.00021917,2]
[372950145,1752817856160,-479.92,0.00021917,2]
[372950147,1752817856171,-3471.04,0.00021917,2]
[372950149,1752817856181,-501.1,0.00021917,2]
[372950151,1752817856191,-473.09,0.00021917,2]
[372950153,1752817856200,-773.33,0.00021917,2]
[372950155,1752817856209,-715.09,0.00021917,2]
[372950157,1752817856219,-2093.69,0.00021917,2]
[372950159,1752817856228,-745.39,0.00021917,2]
[372950161,1752817856238,-460.0,0.00021917,2]
[372950163,1752817856247,-998.27,0.00021917,2]
[372950165,1752817856257,-597.53,0.00021917,2]
[372950167,1752817856277,-1220.96,0.00021917,2]
[372950169,1752817856286,-460.0,0.00021917,2]
[372950171,1752817856296,-460.0,0.00021917,2]
[372950173,1752817856305,-688.63,0.00021917,2]
[372950175,1752817856314,-460.0,0.00021917,2]
[372950177,1752817856323,-1356.91,0.00021917,2]
[372950179,1752817856333,-1968.92,0.00021917,2]
[372950181,1752817856343,-768.29,0.00021917,2]
[372950182,1752817856352,-460.0,0.00021917,2]
[372950184,1752817856362,-601.93,0.00021917,2]
[372950186,1752817856371,-1340.21,0.00021917,2]
[372950189,1752817856381,-460.0,0.00021917,2]
[372950190,1752817856391,-3455.69,0.00021917,2]
[372950193,1752817856400,-231.86930555,0.00021924,5]
[372950194,1752817856410,-227.44898012,0.00021924,5]
[372950196,1752817856420,-269.61347786,0.00021973,2]
[372950198,1752817856430,-970.88,0.00022,7]
[372950201,1752817856440,-2012.85,0.00022,7]
[372950203,1752817856450,-5913.62779296,0.00022,7]
[372950226,1752817856690,-499.27,0.00017534,2]
[372950227,1752817856699,-499.27,0.00017808,2]
[372950228,1752817856708,-499.27,0.00018082,2]
[372950229,1752817856717,-499.27,0.00018356,2]
[372950230,1752817856727,-499.27,0.0001863,2]
[372950231,1752817856735,-499.27,0.00018904,2]
[372950232,1752817856745,-499.27,0.00019178,2]
[372950233,1752817856754,-5377.87220704,0.00022,7]
[372950234,1752817856763,-156.133211,0.00022,7]
[372950235,1752817856773,-20745.92,0.00022,2]
[372950236,1752817856782,-476.25663856,0.00022,7]
[372950237,1752817856791,-12610.43989422,0.00022,7]
[372950238,1752817856800,-160.0,0.00022,7]
[372950239,1752817856811,-214.4881157,0.00022,7]
[372950240,1752817856822,-650.826,0.00022073,2]
[372950241,1752817856831,-2156.0,0.00022073,2]
[372950242,1752817856841,-968.0,0.00022073,2]
[372950243,1752817856852,-407.0,0.00022073,2]
[372950244,1752817856861,-482.18,0.00022191,2]
[372950245,1752817856869,-514.77,0.00022191,2]
[372950246,1752817856876,-656.79,0.00022191,2]
[372950247,1752817856883,-462.11,0.00022191,2]
[372950248,1752817856890,-570.12,0.00022191,2]
[372950249,1752817856897,-606.62721038,0.00022191,2]
[372950250,1752817856904,-1950.61,0.00022191,2]
[372950251,1752817856910,-460.26,0.00022191,2]
[372950252,1752817856918,-460.0,0.00022191,2]
[372950253,1752817856927,-530.61,0.00022191,2]
[372950254,1752817856935,-1410.17,0.00022191,2]
[372950255,1752817856942,-1156.33,0.00022191,2]
[372950256,1752817856948,-253.26250353,0.00022191,2]
[372950257,1752817856958,-1656.95619115,0.00022191,2]
[372950263,1752817857027,-499.27,0.00019452,2]
[372950265,1752817857035,-288.05227919,0.00019726,2]
[372950268,1752817857045,-211.21772081,0.00019726,2]
[372950269,1752817857051,-499.27,0.0002,2]
[372950271,1752817857059,-499.27,0.00020273,2]
[372950273,1752817857068,-499.27,0.00020547,2]
[372950275,1752817857076,-499.27,0.00020821,2]
[372950277,1752817857083,-499.27,0.00021095,2]
[372950279,1752817857091,-844.21130532,0.00022191,2]
[372950281,1752817857099,-363.04776003,0.00022191,2]
[372950291,1752817857172,-232.81901596,0.00022191,2]
[372950293,1752817857183,-1190.82322401,0.00022191,2]
[372950295,1752817857195,-467.96,0.00022191,2]
[372950297,1752817857204,-688.88,0.00022191,2]
[372950299,1752817857214,-479.92,0.00022191,2]
[372950301,1752817857224,-3471.04,0.00022191,2]
[372950303,1752817857234,-501.1,0.00022191,2]
[372950305,1752817857243,-473.09,0.00022191,2]
[372950307,1752817857252,-773.33,0.00022191,2]
[372950309,1752817857262,-715.09,0.00022191,2]
[372950311,1752817857271,-2093.69,0.00022191,2]
[372950313,1752817857282,-460.0,0.00022191,2]
[372950315,1752817857291,-745.39,0.00022191,2]
[372950317,1752817857300,-998.27,0.00022191,2]
[372950319,1752817857310,-597.53,0.00022191,2]
[372950321,1752817857319,-1220.96,0.00022191,2]
[372950323,1752817857329,-460.0,0.00022191,2]
[372950325,1752817857338,-460.0,0.00022191,2]
[372950327,1752817857347,-688.63,0.00022191,2]
[372950329,1752817857357,-460.0,0.00022191,2]
[372950331,1752817857366,-1356.91,0.00022191,2]
[372950333,1752817857375,-1968.92,0.00022191,2]
[372950335,1752817857385,-768.29,0.00022191,2]
[372950337,1752817857394,-460.0,0.00022191,2]
[372950338,1752817857403,-601.93,0.00022191,2]
[372950340,1752817857413,-1340.21,0.00022191,2]
[372950342,1752817857425,-460.0,0.00022191,2]
[372950344,1752817857434,-3455.69,0.00022191,2]
[372950346,1752817857444,-204.0,0.00022192,6]
[372950348,1752817857455,-1108.80089606,0.00022365,2]
[372950350,1752817857465,-482.18,0.00022465,2]
[372950352,1752817857475,-514.77,0.00022465,2]
[372950354,1752817857484,-656.79,0.00022465,2]
[372950356,1752817857493,-462.11,0.00022465,2]
[372950358,1752817857502,-570.12,0.00022465,2]
[372950360,1752817857512,-1950.61,0.00022465,2]
[372950362,1752817857521,-460.26,0.00022465,2]
[372950364,1752817857530,-460.0,0.00022465,2]
[372950366,1752817857539,-530.61,0.00022465,2]
[372950368,1752817857548,-1410.17,0.00022465,2]
[372950370,1752817857557,-1156.33,0.00022465,2]
[372950372,1752817857566,-2754.43,0.00022465,2]
[372950374,1752817857576,-1786.69,0.00022465,2]
[372950376,1752817857585,-688.88,0.00022465,2]
[372950378,1752817857595,-479.92,0.00022465,2]
[372950380,1752817857604,-3471.04,0.00022465,2]
[372950382,1752817857614,-501.1,0.00022465,2]
[372950384,1752817857623,-473.09,0.00022465,2]
[372950386,1752817857633,-773.33,0.00022465,2]
[372950388,1752817857643,-715.09,0.00022465,2]
[372950390,1752817857652,-2093.69,0.00022465,2]
[372950392,1752817857662,-369.9532407,0.00022465,2]
[372950394,1752817857673,-745.39,0.00022465,2]
[372950396,1752817857682,-998.27,0.00022465,2]
[372950398,1752817857693,-597.53,0.00022465,2]
[372950400,1752817857702,-1220.96,0.00022465,2]
[372950402,1752817857712,-403.83269931,0.00022465,2]
[372950404,1752817857722,-460.0,0.00022465,2]
[372950406,1752817857731,-688.63,0.00022465,2]
[372950408,1752817857740,-539.89780621,0.00022465,2]
[372950410,1752817857750,-1356.91,0.00022465,2]
[372950412,1752817857759,-1968.92,0.00022465,2]
[372950414,1752817857768,-768.29,0.00022465,2]
[372950416,1752817857778,-256.13526926,0.00022465,2]
[372950418,1752817857787,-601.93,0.00022465,2]
[372950420,1752817857796,-1340.21,0.00022465,2]
[372950422,1752817857805,-571.38232407,0.00022465,2]
[372950424,1752817857815,-3455.69,0.00022465,2]
[372950426,1752817857824,-169.987809,0.00022603,2]
[372950428,1752817857833,-886.77,0.000227,2]
[372950442,1752817857958,-1108.80089599,0.00022707,2]
[372950444,1752817857969,-482.18,0.00022739,2]
[372950446,1752817857978,-12500.0,0.00022739,7]
[372950448,1752817857987,-514.89434054,0.00022739,2]
[372950450,1752817857997,-656.96515429,0.00022739,2]
[372950452,1752817858006,-462.24,0.00022739,2]
[372950454,1752817858016,-570.32,0.00022739,2]
[372950456,1752817858025,-1950.64977408,0.00022739,2]
[372950458,1752817858035,-460.38,0.00022739,2]
[372950460,1752817858044,-448.20993641,0.00022739,2]
[372950462,1752817858054,-530.82,0.00022739,2]
[372950464,1752817858063,-1410.26431996,0.00022739,2]
[372950466,1752817858074,-1156.46843973,0.00022739,2]
[372950468,1752817858084,-2754.44471596,0.00022739,2]
[372950470,1752817858093,-1786.72855748,0.00022739,2]